[Event "93rd German Championship 2022"]
[Site "Magdeburg"]
[Date "2022.08.16"]
[Round "4.9"]
[White "Parvanyan, Alfred"]
[Black "Wachinger, Nikolas"]
[Result "0-1"]
[ECO "A08"]
[WhiteElo "2151"]
[BlackElo "2442"]
[Annotator "TA"]
[PlyCount "106"]
[EventDate "2022.08.14"]
[EventType "swiss"]
[EventCountry "GER"]
[SourceTitle "playchess.com"]
[Source "ChessBase"]
[SourceQuality "1"]
[TimeControl "40/5400+30:1800+30"]

{[%evp 15,106,-4,0,-18,0,-27,-24,-42,5,-32,0,-6,-22,-67,-70,-64,-59,-58,-76,-66,-62,-78,-68,-64,-70,-85,-64,-108,-125,-107,-87,-143,-129,-185,0,0,0,9,-1,10,7,-124,-121,-124,-123,-107,-128,-108,-122,-139,-133,-164,-165,-164,-163,-165,-162,-161,-161,-161,-161,-161,-161,-179,-138,-278,-274,-243,-226,-203,-182,-179,-178,-357,-351,-342,-329,-29967,-29970,-29969,-620,-29970,-29972,-29972,-29973,-29953,-577,-29977,-29978,-29979,-29979,-29981,-29979]} 1. Nf3 {[%emt 0:02:05]} d5 {[%emt 0:00:19]} 2. g3 {[%emt 0:00:52]} c5 {[%emt 0:00:10]} 3. Bg2 {[%emt 0:00:31]} Nf6 {[%emt 0:00:07]} 4. O-O {[%emt 0:02:29]} e6 {[%emt 0:00:12]} 5. d3 {[%emt 0:02:38]} Nc6 {[%emt 0:00:20]} 6. Nbd2 {[%emt 0:00:45]} Be7 {[%emt 0:00:08]} 7. Re1 {[%emt 0:08:36]} O-O {[%emt 0:01:06]} 8. e4 {[%emt 0:00:41]} Qc7 {[%emt 0:00:56]} 9. h3 {[%emt 0:07:31] C00: French: Unusual White 2nd moves.} b5 {[%emt 0:13:56]} 10. Nh2 {[%emt 0:01:56]} Bb7 {[%emt 0:08:46] [#]} 11. exd5 $146 {[%emt 0:07:13] Black has an edge.} ({Predecessor:} 11. c3 Rfd8 12. f4 dxe4 13. dxe4 c4 14. Qe2 Bc5+ 15. Kh1 Rd3 16. Nhf1 Ne7 17. b3 {0-1 (41) Garcia Prados,D (2025)-Plazuelo Pascual,J (1851) San Sebastian 2012}) 11... exd5 {[%emt 0:03:51]} (11... Nxd5 $15 12. a4 a6) 12. Ndf1 {[%emt 0:02:12]} d4 {[%emt 0:04:31]} 13. Bf4 {[%emt 0:03:47]} Qd7 {[%emt 0:00:58]} 14. Ng4 {[%emt 0:09:01]} Nd5 {[%emt 0:01:08]} 15. Bd2 {[%emt 0:03:27]} f5 {[%emt 0:03:32]} 16. Qf3 {[%emt 0:05:26]} Rad8 {[%emt 0:02:20]} 17. Ne5 {[%emt 0:05:01]} Nxe5 {[%emt 0:01:10]} 18. Rxe5 {[%emt 0:00:09]} Bf6 {[%emt 0:00:36]} 19. Ree1 {[%emt 0:04:59]} c4 {[%emt 0:03:32]} 20. dxc4 {[%emt 0:04:24]} bxc4 {[%emt 0:00:10]} 21. Ba5 {[%emt 0:00:39]} Rb8 {[%emt 0:04:21][%cal Od5e3] Hoping for ...Ne3!} 22. Qe2 {[%emt 0:02:11] Prevents Ne3.} Qb5 {[%emt 0:00:49]} 23. Qe6+ {[%emt 0:02:26]} ({White should play} 23. Bd2) 23... Kh8 $17 {[%emt 0:03:17]} 24. b4 {[%emt 0:02:25]} (24. Bd2 $17 {was necessary.}) 24... d3 $2 {[%emt 0:07:19]} (24... Nxb4 25. Bxb4 Bc8 26. Qe2 Qxb4 27. Rab1 Qxb1 28. Rxb1 Rxb1 29. Qxc4 $17) (24... Nc3 $1 $19 {Threatens to win with ...Bxg2.} 25. Bxb7 Rxb7) 25. a4 $11 {[%emt 0:00:04]} Qc6 {[%emt 0:02:38]} 26. Qxc6 {[%emt 0:02:42]} Bxc6 {[%emt 0:02:38]} 27. Rac1 {[%emt 0:00:16]} Bb2 $36 {[%emt 0:15:50][%mdl 2048] Black fights for an advantage.} 28. Rb1 {[%emt 0:03:48]} (28. b5 $11 Bxb5 29. axb5 (29. Bxd5 Bxa4 30. Bxc4 Bxc1 $15) 29... Bxc1 30. Rxc1 (30. Bxd5 Bb2 $17)) 28... c3 $1 $17 {[%emt 0:04:33][%cal Bc4c3,Bc3c2][%mdl 32] Black is much more active.} (28... Bc3 $6 29. Re6 dxc2 30. Rc1 Bxa4 31. Bxd5 $11) 29. cxd3 {[%emt 0:01:28]} Nxb4 {[%emt 0:02:20]} 30. Bxb4 {[%emt 0:04:08]} Rxb4 {[%emt 0:00:03]} 31. Bxc6 {[%emt 0:00:39]} c2 {[%emt 0:00:05]} 32. Rbc1 {[%emt 0:02:11]} (32. Re8 $2 Rxe8 33. Nd2 cxb1=Q+ $19) 32... Bxc1 {[%emt 0:00:08]} 33. Rxc1 {[%emt 0:00:02]} Rc8 $1 {[%emt 0:00:08]} 34. Rxc2 {[%emt 0:01:10][%cal Oc2e2]} Rb6 {[%emt 0:00:02]} 35. Rc5 {[%emt 0:00:28][%cal Oc5f5]} g6 {[%emt 0:01:24]} (35... Rbxc6 36. Ra5 $17) (35... Rcxc6 36. Rxf5 g6 37. Rf7 $17) 36. Ra5 {[%emt 0:01:10] Strongly threatening Bd5.} Rcxc6 {[%emt 0:01:30]} ({Not} 36... Rbxc6 37. Rxa7 R6c7 38. Ra6) 37. Rxa7 $19 {[%emt 0:01:02][%mdl 4096] Endgame KRR-KRN} Ra6 {[%emt 0:00:02]} 38. Rb7 {[%emt 0:04:01]} Rcb6 {[%emt 0:01:40]} 39. Rc7 {[%emt 0:00:43]} ({Reject} 39. Rxb6 Rxb6 40. Kg2 Rd6) 39... Rxa4 {[%emt 0:00:24]} 40. Nd2 {[%emt 0:03:25] This move loses the game for White.} (40. Ne3 $17) 40... Rb2 {[%emt 0:02:10]} 41. Nc4 {[%emt 0:07:42]} Rc2 {[%emt 0:05:47] aiming for ...Raa2.} 42. g4 {[%emt 0:02:20]} Ra1+ {[%emt 0:03:05]} 43. Kg2 {[%emt 0:00:55]} Raa2 {[%emt 0:00:08]} 44. gxf5 {[%emt 0:02:05]} (44. Kg3) 44... Rxf2+ {[%emt 0:04:13]} 45. Kg3 {[%emt 0:00:15]} Rg2+ {[%emt 0:10:27]} ({Don't go for} 45... Rxf5 $2 46. Ne3 Rg5+ 47. Kh4) (45... gxf5 $2 46. Kh4 $19) 46. Kh4 $2 {[%emt 0:07:29] [#]} (46. Kf4 $19 Raf2+ 47. Ke5 Rxf5+ 48. Kd6) 46... Raf2 $1 {[%emt 0:00:19][%cal Rf2f4]} 47. Ne5 {[%emt 0:02:31]} Rf4+ {[%emt 0:00:15]} 48. Ng4 {[%emt 0:00:18]} Rxf5 {[%emt 0:00:06][%csl Gg6][%cal Rf5h5]} 49. Rc8+ {[%emt 0:01:23]} Kg7 {[%emt 0:00:03][%csl Gg6][%cal Rf5h5]} 50. Rc7+ {[%emt 0:00:29]} Rf7 {[%emt 0:00:11]} (50... Kf8 $142 51. Rc8+ Kg7 52. Rc7+ Rf7 53. Ne3 Rd2 54. Rxf7+ Kxf7 55. Nc4 Rd1 56. Kg4 Ke6 57. Nb2 Rb1 58. Nc4 Rb3 59. Nd2 Rxd3 60. Nf3 {[#]} Rxf3 $1 {[%mdl 512]} 61. Kxf3 Kf5 62. Ke3 g5 63. Kd4 Kf4 64. Kd5 Kg3 65. Ke5 Kxh3 66. Kf6 g4 67. Kg5 g3 68. Kf6 g2 69. Ke7 g1=Q 70. Kd6 Qb6+ 71. Kd5 Qb5+ 72. Kd4 Kg3 73. Kc3 Kf3 74. Kc2 Ke3 75. Kc3 h5 76. Kc2 Qb4 77. Kc1 Kd3 78. Kd1 Qd2#) 51. Rc4 {[%emt 0:02:08]} h5 {[%emt 0:00:36] Black mates.} 52. Ne5 {[%emt 0:00:44]} Rf5 {[%emt 0:01:07]} 53. Re4 {[%emt 0:01:22]} Kh6 {[%emt 0:00:30] Weighted Error Value: White=0.58/Black=0.19 (very precise)} 0-1

[Event "93rd German Championship 2022"]
[Site "Magdeburg"]
[Date "2022.08.16"]
[Round "4.10"]
[White "Kunin, Vitaly"]
[Black "Miller, Eduard"]
[Result "1-0"]
[ECO "E73"]
[WhiteElo "2521"]
[BlackElo "2353"]
[Annotator "TA"]
[PlyCount "69"]
[EventDate "2022.08.14"]
[EventType "swiss"]
[EventCountry "GER"]
[SourceTitle "playchess.com"]
[Source "ChessBase"]
[SourceQuality "1"]
[TimeControl "40/5400+30:1800+30"]

{[%evp 13,69,50,51,58,63,65,67,67,66,62,58,65,62,5,51,12,12,0,0,0,0,0,0,-8,0,0,68,52,57,58,96,28,17,16,31,-35,0,-7,77,5,28,0,143,105,162,79,133,135,238,211,270,245,377,397,356,379,722,499]} 1. d4 {[%emt 0:00:04]} Nf6 {[%emt 0:04:28]} 2. c4 {[%emt 0:00:06]} g6 {[%emt 0:00:06]} 3. Nc3 {[%emt 0:00:08]} Bg7 {[%emt 0:00:04]} 4. e4 {[%emt 0:00:10]} d6 {[%emt 0:00:03]} 5. Be2 {[%emt 0:00:08]} O-O {[%emt 0:00:04]} 6. Be3 {[%emt 0:00:07]} e5 {[%emt 0:00:11]} 7. d5 {[%emt 0:00:07]} Na6 {[%emt 0:00:11]} 8. g4 {[%emt 0:00:21][%cal Bg2g4,Bg4g5][%mdl 32] E73: King's Indian: Averbakh Variation without 6...c5.} Nc5 {[%emt 0:00:05]} 9. f3 {[%emt 0:00:20]} a5 {[%emt 0:00:32] 9...h5 is the hot move.} 10. h4 {[%emt 0:00:09] White is slightly better.} h5 {[%emt 0:00:06]} 11. g5 {[%emt 0:00:30]} Nfd7 {[%emt 0:00:09]} 12. Nh3 {[%emt 0:01:16][%cal Bg1h3,Bh3f2,Bf2d3][%mdl 32]} Na6 {[%emt 0:00:29] [#]} 13. a3 $146 {[%emt 0:03:26] White is more active.} (13. Nf2 $14) ({Predecessor:} 13. b3 Ndc5 14. Rb1 Bd7 15. Nf2 Qe7 16. Qd2 Kh7 17. Nb5 b6 18. Nc3 f6 19. Nh3 Bxh3 20. Rxh3 fxg5 21. hxg5 {1-0 (65) Milikow,Y (2452)-Sharavdorj,D (2382) Belgrade 2022}) 13... Ndc5 {[%emt 0:06:16]} (13... Nac5 $11 {was preferrable.}) 14. Nf2 {[%emt 0:02:58][%cal Ob2b4]} (14. b4 $5 Nd7 15. Nf2 $16) 14... Bd7 {[%emt 0:03:01]} 15. b3 {[%emt 0:00:10][%cal Bb2b3,Bb3b4][%mdl 32] Inhibits a4.} a4 {[%emt 0:00:24]} 16. b4 {[%emt 0:00:54]} Nb3 {[%emt 0:00:05]} 17. Ra2 {[%emt 0:01:34]} f6 {[%emt 0:10:01]} 18. Nd3 {[%emt 0:03:54]} fxg5 {[%emt 0:02:14]} 19. hxg5 {[%emt 0:03:06]} Rf4 {[%emt 0:07:04]} 20. Bxf4 $14 {[%emt 0:15:20]} (20. Nxf4 exf4 21. Nxa4 (21. Bd2 $2 Qxg5 22. Qb1 Qg2 $19) 21... Bxa4 22. Bxf4 Qd7 $15) 20... exf4 {[%emt 0:00:08]} 21. e5 $1 {[%emt 0:00:06]} dxe5 {[%emt 0:17:32]} 22. Ne4 {[%emt 0:01:02]} (22. Nf2 $1 $16) 22... Bf5 {[%emt 0:10:09]} 23. Ndf2 {[%emt 0:01:24]} Nd4 {[%emt 0:03:52]} 24. Kf1 {[%emt 0:14:21]} (24. Qxa4 $2 Bf8 25. b5 (25. Nf6+ $2 Kf7 $19) 25... Nb4 $1 {[%mdl 512]} 26. axb4 (26. Nf6+ $2 Kf7 $19) 26... Rxa4 27. Rxa4 Be7 $17) (24. Nf6+ $14 Bxf6 25. gxf6) 24... Nb8 {[%emt 0:04:28][%mdl 1024] Black has compensation.} (24... c6 $5 {[%cal Rc6d5]}) 25. Bd3 {[%emt 0:05:22]} b6 {[%emt 0:12:48] [#]} (25... b5 $11) 26. Rg1 {[%emt 0:03:25]} ({Better is} 26. Nc3 $1 $16) 26... Nd7 {[%emt 0:01:45]} 27. Nc3 {[%emt 0:00:59]} Bf8 {[%emt 0:03:57]} (27... e4 $1 $11 {remains equal.} 28. fxe4 Bg4 29. Nxg4 hxg4) 28. Nfe4 $16 {[%emt 0:01:16]} ({Inferior is} 28. Nxa4 b5 29. cxb5 Rxa4 30. Qxa4 Bxd3+ 31. Nxd3 Nb6 $11) 28... Be7 {[%emt 0:00:53]} (28... Bg7 $16 29. Rh2 Nf8) 29. Rf2 {[%emt 0:04:07]} (29. Nb5 $18) 29... Nf8 {[%emt 0:00:42]} (29... Kg7 $142) 30. Ne2 {[%emt 0:00:52] And now Nxd4 would win.} ({Stronger than} 30. Nxa4 Bh3+ 31. Ke1 Bd7 $17) 30... Bh3+ {[%emt 0:07:44]} (30... Nb3 $16 {was necessary.}) 31. Ke1 $18 {[%emt 0:00:18]} Nf5 {[%emt 0:00:04]} 32. Qa1 {[%emt 0:00:52]} Nd4 {[%emt 0:05:49]} (32... Nd6 {was called for.} 33. Qxe5 Nxe4) 33. Nxd4 {[%emt 0:00:22]} exd4 {[%emt 0:00:03]} 34. Qxd4 {[%emt 0:01:27] aiming for Nf6+.} Nh7 {[%emt 0:01:24] Inhibits Nf6+.} (34... Bf5 35. Qc3 Qd7) 35. Nf6+ {[%emt 0:01:21] Weighted Error Value: White=0.20 (precise) /Black=0.40} 1-0

[Event "93rd German Championship 2022"]
[Site "Magdeburg"]
[Date "2022.08.16"]
[Round "4.11"]
[White "Feuerstack, Aljoscha"]
[Black "Dahl, Christoph"]
[Result "0-1"]
[ECO "E68"]
[WhiteElo "2477"]
[BlackElo "2348"]
[Annotator "TA"]
[PlyCount "150"]
[EventDate "2022.08.14"]
[EventType "swiss"]
[EventCountry "GER"]
[SourceTitle "playchess.com"]
[Source "ChessBase"]
[SourceQuality "1"]
[TimeControl "40/5400+30:1800+30"]

{[%evp 22,150,47,45,46,45,55,62,68,60,75,32,45,33,35,29,38,24,27,44,31,29,30,22,30,0,0,0,0,0,0,-42,-39,-44,-18,-53,-12,-34,-12,-10,-9,-14,-12,-11,-2,-2,0,-83,-83,-88,-89,-90,-85,-101,-98,-147,-139,-117,-124,-134,-105,-103,-102,-195,-24,-24,-24,-24,-24,-31,-46,-8,-8,-214,-205,-188,-30,-30,-8,-8,-8,-2045,-1934,-2520,-1096,-2235,-2462,-12845,-12826,-12845,-12843,-12841,-12835,-12848,-29937,-29938,-29939,-29937,-29940,-29938,-12850,-29945,-29939,-29936,-12851,-29950,-29950,-29956,-29954,-29961,-29963,-29963,-29964,-29949,-11903,-11196,-7230,-29978,-29979,-29984,-29985,-29985,-29986,-29986,-29987,-29987,-29987,-29987,-29988,-29988,-29989]} 1. d4 {[%emt 0:00:38]} Nf6 {[%emt 0:00:10]} 2. c4 {[%emt 0:00:04]} g6 {[%emt 0:00:48]} 3. g3 {[%emt 0:00:06]} Bg7 {[%emt 0:00:35]} 4. Bg2 {[%emt 0:00:07]} O-O {[%emt 0:00:45]} 5. Nc3 {[%emt 0:00:11]} d6 {[%emt 0:01:01]} 6. Nf3 {[%emt 0:00:09]} Nbd7 {[%emt 0:00:46]} 7. O-O {[%emt 0:00:21]} e5 {[%emt 0:00:47]} 8. e4 {[%emt 0:00:19]} a6 {[%emt 0:01:24]} 9. h3 {[%emt 0:00:38]} b5 {[%emt 0:00:56]} 10. dxe5 {[%emt 0:00:31]} dxe5 {[%emt 0:00:23]} 11. Qc2 {[%emt 0:01:07]} c6 {[%emt 0:01:02]} 12. Be3 {[%emt 0:01:11]} Qe7 {[%emt 0:01:36] E69: King's Indian: Fianchetto: 6...Nbd7 7 0-0 e5 8 e4 c6 9 h3.} 13. Nd2 {[%emt 0:02:00]} Bb7 {[%emt 0:01:53]} 14. Nb3 {[%emt 0:00:51]} Rab8 {[%emt 0:03:28] White is slightly better.} 15. c5 {[%emt 0:18:48]} Rfd8 {[%emt 0:03:36]} 16. a4 {[%emt 0:03:13]} Nf8 {[%emt 0:05:30] [#]} 17. axb5 $146 {[%emt 0:33:47]} ({Predecessor:} 17. Na2 Ne6 18. Nb4 Qc7 19. Nd3 Nd7 20. Bd2 Re8 21. Ba5 Qc8 22. Rfd1 Ra8 23. h4 {1-0 (37) Kortschnoj,V-Penrose,J Palma de Mallorca 1969}) 17... axb5 {[%emt 0:01:45]} 18. Ra7 {[%emt 0:02:23]} Ra8 {[%emt 0:06:26]} 19. Rfa1 {[%emt 0:00:09][%cal Oc3b5] Hoping for Nxb5!} Rxa7 {[%emt 0:02:04]} 20. Rxa7 {[%emt 0:00:06][%cal Oc3b5]} Ra8 {[%emt 0:01:28]} 21. Rxa8 {[%emt 0:00:06]} Bxa8 {[%emt 0:00:05]} 22. Qd1 {[%emt 0:00:22]} Ne6 {[%emt 0:01:49]} 23. h4 {[%emt 0:18:00]} Bf8 {[%emt 0:16:00]} 24. Qa1 {[%emt 0:04:15]} Bb7 {[%emt 0:03:47][%cal Ba8b7,Bb7c8,Bc8a6][%mdl 32]} 25. Bf3 {[%emt 0:06:22] Inhibits Ng4.} Qd7 {[%emt 0:06:21]} 26. Ne2 {[%emt 0:02:52]} Bc8 {[%emt 0:11:20]} 27. Qb1 {[%emt 0:02:28]} b4 {[%emt 0:16:11]} 28. Kg2 {[%emt 0:00:12]} Ba6 {[%emt 0:00:47] next ...Bd3 is good for Black.} 29. Qe1 {[%emt 0:00:13]} Qb7 {[%emt 0:02:36]} 30. Nec1 $1 {[%emt 0:01:20]} Nd7 {[%emt 0:02:14][%cal Bf6d7,Bd7c5,Bc5d3][%mdl 32]} 31. Na2 $1 {[%emt 0:00:11]} Nexc5 {[%emt 0:01:50]} (31... Ndxc5 {seems wilder.} 32. Nxc5 Nxc5 33. Nxb4 Bb5) 32. Nxc5 {[%emt 0:00:13]} Bxc5 {[%emt 0:00:49]} 33. Bxc5 {[%emt 0:00:24]} Nxc5 {[%emt 0:00:06]} 34. Qxb4 {[%emt 0:02:16]} (34. Nxb4 $11 {keeps the balance.} Bb5 35. Qc3) 34... Nd3 $36 {[%emt 0:00:34][%csl LRb2,LRb4][%mdl 2048] Black is on the roll.} 35. Qxb7 {[%emt 0:01:26]} Bxb7 {[%emt 0:00:05][%mdl 4096] Endgame KBN-KBN} 36. Be2 {[%emt 0:00:14]} Nxb2 {[%emt 0:00:19] Black is more active.} 37. Nc3 {[%emt 0:00:15]} Kf8 {[%emt 0:02:09]} 38. f4 {[%emt 0:00:30]} ({Better is} 38. Nb1) 38... Ke7 $1 {[%emt 0:01:15]} 39. Kf3 {[%emt 0:00:42]} Kd6 {[%emt 0:00:38]} 40. Ke3 {[%emt 0:00:49]} Bc8 {[%emt 0:02:34]} 41. Kd2 {[%emt 0:14:07]} Be6 {[%emt 0:01:28]} 42. Kc1 {[%emt 0:05:46] [#]} (42. f5 $17 Bb3 43. fxg6 fxg6 44. Nb1) 42... Nc4 $2 {[%emt 0:00:47]} (42... exf4 $1 $19 43. gxf4 Nc4) 43. f5 $1 $11 {[%emt 0:00:05]} gxf5 {[%emt 0:00:05]} 44. exf5 {[%emt 0:00:03]} Bd5 {[%emt 0:00:07]} 45. Bxc4 {[%emt 0:01:14]} Bxc4 {[%emt 0:00:06] KB-KN} 46. Ne4+ {[%emt 0:00:17]} Ke7 {[%emt 0:00:28] White must now prevent ...Bd5.} 47. Kd2 $2 {[%emt 0:00:41]} (47. g4 $1 $11 {and White is okay.}) 47... Bd5 $19 {[%emt 0:00:59]} 48. Nf2 {[%emt 0:04:32] [#]} h5 {[%emt 0:02:39]} (48... Kf6 $1 $19 {And now ...h5 would win.} 49. g4 h5 50. gxh5 Kxf5) 49. g4 $11 hxg4 {[%emt 0:00:17]} 50. Nxg4 {[%emt 0:01:35]} f6 {[%emt 0:01:49]} 51. h5 $2 {[%emt 0:02:37][%mdl 8192] White is on the road to losing.} (51. Kc3 $11) 51... Be4 $19 {[%emt 0:04:05]} (51... Bf3 52. h6 Kf7 53. h7 $11) 52. Ne3 {[%emt 0:00:09]} Kf7 {[%emt 0:00:47]} (52... Bf3 $142 53. h6 Kf8) 53. h6 {[%emt 0:00:12] [#]} Bf3 $1 {[%emt 0:02:30] Threatens to win with ...Kg8.} ({Worse is} 53... Kg8 54. Ng4 Kh8 55. Nxf6 Bxf5 56. Ke3 $11) 54. Nc4 {[%emt 0:00:34]} Kg8 {[%emt 0:00:31]} 55. Nd6 {[%emt 0:02:55]} Kh7 {[%emt 0:00:24]} 56. Ne8 {[%emt 0:00:13]} Kxh6 {[%emt 0:00:08]} 57. Nxf6 {[%emt 0:00:03]} Kg5 $1 {[%emt 0:00:10][%csl LRf5,LRf6]} 58. Nd7 {[%emt 0:00:57]} Kxf5 {[%emt 0:00:10]} 59. Ke3 {[%emt 0:00:09]} Bd5 {[%emt 0:00:08]} 60. Nc5 {[%emt 0:00:20]} Bh1 {[%emt 0:01:53]} (60... Bf7 $142 61. Nb7 Bg6 62. Nd8 Be8 63. Nb7 Ke6 64. Nc5+ Kd5 65. Ne4 Bg6 66. Nf6+ Ke6 67. Ng4 c5 68. Kd2 Kf5 69. Ne3+ Ke4 70. Nd1 c4 71. Kc3 Bh5 72. Nb2 Bf7 73. Nd1 Kf3 74. Kc2 Be8 75. Nc3 e4 76. Kd2 Bh5 77. Nd5 Bf7 78. Nc3 Bh5 79. Ke1 Ke3 80. Ne2 Bf3 81. Nc1 Kd4 82. Kf2 Bh5 83. Na2 c3 84. Ke1 e3 85. Nb4 Bg6 86. Kd1 Kc4 87. Na2 Bd3 88. Ke1 c2 89. Nc1 Kc3 90. Na2+ Kd4 91. Nc1 Bc4 92. Nd3 Kxd3 93. Kf1 c1=Q+ 94. Kg2 Qe1 95. Kf3 Qh4 96. Kg2 Qf2+ 97. Kh3 Be6#) 61. Kd2 {[%emt 0:01:25]} Bg2 {[%emt 0:01:34]} 62. Ke3 {[%emt 0:00:44]} Kf6 {[%emt 0:01:46]} 63. Kf2 {[%emt 0:02:17]} Bh3 {[%emt 0:01:14]} 64. Ke3 {[%emt 0:00:42]} Bf5 {[%emt 0:00:11]} 65. Kd2 {[%emt 0:00:48]} e4 {[%emt 0:00:50]} 66. Ke3 {[%emt 0:00:35]} Ke5 {[%emt 0:00:04]} 67. Nb3 {[%emt 0:00:21]} Kd5 {[%emt 0:00:22] ( -> ...c5)} 68. Kd2 {[%emt 0:00:36]} c5 {[%emt 0:00:33]} 69. Na5 {[%emt 0:00:35]} Bd7 {[%emt 0:02:02] Black mates.} ({Not} 69... c4 70. Kc3 $11) 70. Ke3 {[%emt 0:00:35]} Ba4 {[%emt 0:00:10]} 71. Kd2 {[%emt 0:00:30]} Kd4 {[%emt 0:00:13]} 72. Nb7 {[%emt 0:00:13]} e3+ {[%emt 0:00:17]} 73. Ke2 {[%emt 0:00:11]} Bb5+ {[%emt 0:00:11]} 74. Ke1 {[%emt 0:00:06]} c4 {[%emt 0:00:21]} 75. Na5 {[%emt 0:01:08]} Ba4 {[%emt 0:00:31] Weighted Error Value: White=0.59/Black=0.33} 0-1

[Event "93rd German Championship 2022"]
[Site "Magdeburg"]
[Date "2022.08.16"]
[Round "4.12"]
[White "Arnold, Max"]
[Black "Gungl, Theo"]
[Result "1/2-1/2"]
[ECO "B90"]
[WhiteElo "2350"]
[BlackElo "2366"]
[Annotator "TA"]
[PlyCount "80"]
[EventDate "2022.08.14"]
[EventType "swiss"]
[EventCountry "GER"]
[SourceTitle "playchess.com"]
[Source "ChessBase"]
[SourceQuality "1"]
[TimeControl "40/5400+30:1800+30"]

{[%evp 15,80,44,45,40,56,48,45,30,56,57,62,49,50,58,73,48,50,47,120,123,129,129,129,126,114,114,121,133,150,141,156,121,144,41,49,30,32,27,42,22,72,71,72,0,0,0,0,0,0,0,0,0,0,0,0,0,0,0,0,0,0,0,0,0,0,0,0]} 1. e4 {[%emt 0:00:03]} c5 {[%emt 0:00:06]} 2. Nf3 {[%emt 0:00:06]} d6 {[%emt 0:00:06]} 3. d4 {[%emt 0:00:07]} cxd4 {[%emt 0:00:06]} 4. Nxd4 {[%emt 0:00:07]} Nf6 {[%emt 0:00:05]} 5. Nc3 {[%emt 0:00:17]} a6 {[%emt 0:00:07]} 6. Bd3 {[%emt 0:01:24]} e6 {[%emt 0:00:50]} 7. O-O {[%emt 0:01:20]} Nc6 {[%emt 0:04:53]} 8. Nxc6 {[%emt 0:03:23]} bxc6 {[%emt 0:00:02]} 9. b3 {[%emt 0:04:51] B46: Sicilian: Taimanov: 5 Nc3 a6.} Be7 {[%emt 0:03:32]} 10. Bb2 {[%emt 0:02:02]} Bb7 {[%emt 0:10:30]} 11. Qe2 {[%emt 0:07:45] White is slightly better.} Qc7 {[%emt 0:13:11] [#]} 12. Na4 $146 {[%emt 0:11:56]} ({Predecessor:} 12. f4 Nd7 13. Kh1 Nc5 14. e5 Nxd3 15. cxd3 c5 16. Rac1 d5 17. Na4 Rc8 18. Nxc5 Bxc5 {1-0 (33) Cantero Navarro,A (2251)-Carrasco Sagredo,M (2133) Benidorm 2012}) 12... c5 {[%emt 0:06:33][%cal Oc5c4]} 13. c4 {[%emt 0:00:43]} (13. e5 {with more complications.} dxe5 14. Bxe5 Bd6 15. Bxd6 Qxd6 16. Rad1) 13... Bc6 {[%emt 0:02:36]} 14. Nc3 {[%emt 0:02:51]} O-O {[%emt 0:20:29]} 15. Rae1 {[%emt 0:01:49]} Nd7 {[%emt 0:03:06]} 16. Nd5 {[%emt 0:07:39]} Bxd5 {[%emt 0:00:32]} (16... exd5 $14 17. exd5 Bf6) 17. exd5 $16 {[%emt 0:03:17]} e5 {[%emt 0:00:14] [#]} 18. f4 $1 $36 {[%emt 0:01:52][%mdl 2048] aiming for Qh5. Keeping Black busy.} Bf6 {[%emt 0:00:21]} 19. Qe4 {[%emt 0:09:48][%csl Gd3][%cal Re4h7]} g6 {[%emt 0:00:24] [#]} 20. f5 $1 {[%emt 0:00:31]} Qd8 {[%emt 0:07:12]} 21. Re3 {[%emt 0:07:02]} Qe7 {[%emt 0:02:55]} 22. Rh3 {[%emt 0:07:15]} (22. fxg6 $6 fxg6 23. Ref3 Bg7 $14) 22... Rfe8 {[%emt 0:06:40]} 23. Rhf3 {[%emt 0:06:09][%cal Rf5g6] White is much more active.} ({But not} 23. fxg6 $6 fxg6 24. Rhf3 Rf8 $14) 23... Bg7 {[%emt 0:05:06]} 24. fxg6 {[%emt 0:09:59]} ({White should try} 24. Bc2 $16) 24... fxg6 $14 {[%emt 0:00:06]} 25. Bc2 {[%emt 0:02:31]} Rf8 {[%emt 0:00:24]} 26. Bc1 {[%emt 0:01:55]} Rxf3 {[%emt 0:01:27]} 27. Rxf3 {[%emt 0:00:09]} Rf8 {[%emt 0:00:09]} (27... Re8 $11) 28. Rxf8+ $16 {[%emt 0:00:33]} Qxf8 {[%emt 0:01:56]} 29. Qg4 {[%emt 0:00:43]} (29. g4 $16) 29... Bh6 $1 $11 {[%emt 0:06:41] Prevents g5. The position is equal.} 30. Qe6+ {[%emt 0:05:49]} Kh8 {[%emt 0:00:02]} 31. Bxh6 {[%emt 0:00:08]} Qxh6 {[%emt 0:00:01]} 32. Qxd7 {[%emt 0:00:12] And now Qf7 would win.} Qc1+ {[%emt 0:00:07]} 33. Kf2 {[%emt 0:00:04] Black must now prevent Qe8+.} Qxc2+ {[%emt 0:00:05][%mdl 4096] Endgame KQ-KQ} 34. Kg3 {[%emt 0:00:57]} Qd3+ {[%emt 0:00:11]} 35. Kh4 {[%emt 0:01:21]} Qd4+ {[%emt 0:00:59]} 36. Kh3 {[%emt 0:01:13]} Qe3+ {[%emt 0:03:08]} 37. g3 {[%emt 0:00:16]} Qh6+ {[%emt 0:00:07]} 38. Kg2 {[%emt 0:00:02]} Qd2+ {[%emt 0:00:06]} 39. Kh3 {[%emt 0:00:03]} Qh6+ {[%emt 0:00:06]} 40. Kg2 {[%emt 0:00:04]} Qd2+ {[%emt 0:00:02] Weighted Error Value: White=0.12 (very precise) /Black=0.09 (flawless)} 1/2-1/2